[Event "FIDE WCCC Girls-10 2024"]
[Site "Montesilvano"]
[Date "2024.11.20"]
[Round "6.36"]
[White "Minasyan, Arina"]
[Black "Vitsiuk, Aleksandra"]
[Result "1-0"]
[Annotator "NA RC"]
[ECO "D32"]
[WhiteElo "1545"]
[BlackElo "1476"]
[PlyCount "127"]
[EventDate "2024.11.18"]
[EventType "swiss"]
[EventCountry "ITA"]
[SourceTitle "playchess.com"]
[Source "ChessBase"]
[SourceQuality "1"]
[TimeControl "5400+30"]

1. d4 {[%emt 0:00:12]} d5 {[%emt 0:00:17]} 2. Nf3 {[%emt 0:00:10]} Nf6 {[%emt 0:00:37]} 3. c4 {[%emt 0:00:07]} e6 {[%emt 0:00:28]} 4. Nc3 {[%emt 0:00:07]} c5 {[%emt 0:01:24]} 5. dxc5 {[%emt 0:07:37]} Bxc5 {[%emt 0:01:37]} 6. cxd5 {[%emt 0:00:14]} exd5 {[%emt 0:00:44]} 7. e3 {[%emt 0:03:14]} O-O {[%emt 0:04:22]} 8. Bd3 {[%emt 0:07:39]} Nc6 {[%emt 0:01:27]} 9. O-O {[%emt 0:01:26]} Bg4 {[%emt 0:02:41]} 10. h3 {[%emt 0:06:27]} Bxf3 {[%emt 0:01:32]} 11. Qxf3 {[%emt 0:00:21]} Ne5 {[%emt 0:00:32]} 12. Qf5 {[%emt 0:04:53]} Nxd3 {[%emt 0:00:34]} 13. Qxd3 {[%emt 0:00:56]} Qd7 {[%emt 0:01:23]} 14. a3 {[%emt 1:04:07]} d4 {[%emt 0:03:00]} 15. Rd1 {[%emt 0:00:00]} dxe3 {[%emt 0:01:30]} 16. Qxd7 {[%emt 0:00:00]} exf2+ {[%emt 0:00:07]} 17. Kf1 {[%emt 0:00:00]} Nxd7 {[%emt 0:00:05]} 18. Rxd7 {[%emt 0:00:00]} Rfd8 {[%emt 0:00:10]} 19. Rxd8+ {[%emt 0:00:00]} Rxd8 {[%emt 0:00:07]} 20. Bf4 {[%emt 0:00:00]} h6 {[%emt 0:02:38]} 21. Rd1 {[%emt 0:00:00]} Re8 {[%emt 0:00:59]} 22. Bg3 {[%emt 0:00:00]} Re6 {[%emt 0:01:39]} 23. Bxf2 {[%emt 0:00:00]} Bxf2 {[%emt 0:00:14]} 24. Kxf2 {[%emt 0:00:00]} Rb6 {[%emt 0:00:30]} 25. Rd2 {[%emt 0:00:00]} Rf6+ {[%emt 0:00:31]} 26. Ke1 {[%emt 0:00:00]} Kf8 {[%emt 0:02:10]} 27. Rc2 {[%emt 0:00:00]} Re6+ {[%emt 0:02:06]} 28. Re2 {[%emt 0:00:00]} Rc6 {[%emt 0:01:23]} 29. Kd2 {[%emt 0:00:00]} Rd6+ {[%emt 0:01:06]} 30. Kc2 {[%emt 0:00:00]} Rc6 {[%emt 0:00:43]} 31. Kd3 {[%emt 0:00:00]} Rd6+ {[%emt 0:00:38]} 32. Kc4 {[%emt 0:00:00]} Rc6+ {[%emt 0:00:22]} 33. Kd5 {[%emt 0:00:00]} Rg6 {[%emt 0:00:41]} 34. g4 {[%emt 0:00:00]} Rg5+ {[%emt 0:01:20]} 35. Re5 {[%emt 0:00:00]} Rg6 {[%emt 0:00:18]} 36. Nb5 {[%emt 0:00:00]} Ra6 {[%emt 0:02:18]} 37. b4 {[%emt 0:00:00]} g5 {[%emt 0:00:47]} 38. Rf5 {[%emt 0:00:00]} Ke7 {[%emt 0:01:17]} 39. Re5+ {[%emt 0:00:00]} Kd7 {[%emt 0:00:46]} 40. Re3 {[%emt 0:00:00]} f6 {[%emt 0:04:50]} 41. Kc4 {[%emt 0:00:00]} Rc6+ {[%emt 0:00:34]} 42. Kd4 {[%emt 0:00:20]} a6 {[%emt 0:00:14]} 43. Nc3 {[%emt 0:05:15]} b5 {[%emt 0:00:40]} 44. Nd5 {[%emt 0:03:00]} Rd6 {[%emt 0:00:35]} 45. Re7+ {[%emt 0:00:12]} Kd8 {[%emt 0:00:32]} 46. Rh7 {[%emt 0:01:08]} Rc6 {[%emt 0:00:42]} 47. Rxh6 {[%emt 0:01:01]} Rc4+ {[%emt 0:00:16]} 48. Kd3 {[%emt 0:00:51]} Rc1 {[%emt 0:01:05]} 49. Rxf6 {[%emt 0:01:26]} Rd1+ {[%emt 0:00:19]} 50. Ke4 {[%emt 0:00:07]} Re1+ {[%emt 0:00:31]} 51. Kf5 {[%emt 0:00:14]} Rh1 {[%emt 0:00:59]} 52. Rh6 {[%emt 0:00:42]} Ra1 {[%emt 0:00:39]} 53. Kxg5 {[%emt 0:00:55]} Rxa3 {[%emt 0:00:11]} 54. Kf5 {[%emt 0:00:36]} a5 {[%emt 0:00:45]} 55. bxa5 {[%emt 0:00:44]} Rxa5 {[%emt 0:00:04]} 56. Nb4 {[%emt 0:02:15]} Ra4 {[%emt 0:00:19]} 57. g5 {[%emt 0:00:33]} Rxb4 {[%emt 0:00:14]} 58. g6 {[%emt 0:00:06]} Rb1 {[%emt 0:00:33]} 59. g7 {[%emt 0:01:16]} Rf1+ {[%emt 0:00:17]} 60. Kg6 {[%emt 0:00:18]} Ke7 {[%emt 0:00:14]} 61. g8=Q {[%emt 0:00:45]} Rg1+ {[%emt 0:00:08]} 62. Kh7 {[%emt 0:00:14]} Rxg8 {[%emt 0:00:15]} 63. Kxg8 {[%emt 0:00:08]} Kd7 {[%emt 0:00:04]} 64. Rb6 {[%emt 0:00:12]} 1-0

[Event "FIDE WCCC Girls-10 2024"]
[Site "Montesilvano"]
[Date "2024.11.20"]
[Round "6.37"]
[White "Smilic, Nina"]
[Black "Muradli, Sabira"]
[Result "1/2-1/2"]
[Annotator "NA RC"]
[ECO "D12"]
[WhiteElo "1540"]
[BlackElo "1430"]
[PlyCount "66"]
[EventDate "2024.11.18"]
[EventType "swiss"]
[EventCountry "ITA"]
[SourceTitle "playchess.com"]
[Source "ChessBase"]
[SourceQuality "1"]
[TimeControl "5400+30"]

1. d4 {[%emt 0:00:03]} d5 {[%emt 0:00:00]} 2. c4 {[%emt 0:00:07]} c6 {[%emt 0:00:00]} 3. Nf3 {[%emt 0:00:04]} Nf6 {[%emt 0:00:00]} 4. Nc3 {[%emt 0:00:17]} Bf5 {[%emt 0:00:00]} 5. e3 {[%emt 0:00:18]} e6 {[%emt 0:01:35]} 6. Be2 {[%emt 0:01:46]} Bb4 {[%emt 0:00:08]} 7. O-O {[%emt 0:07:09]} Bxc3 {[%emt 0:00:07]} 8. bxc3 {[%emt 0:00:04]} Ne4 {[%emt 0:00:19]} 9. Qb3 {[%emt 0:02:43]} Qc7 {[%emt 0:03:04]} 10. Rd1 {[%emt 0:10:01]} O-O {[%emt 0:03:35]} 11. Nh4 {[%emt 0:07:04]} Bg6 {[%emt 0:06:32]} 12. Ba3 {[%emt 0:03:09]} Nd6 {[%emt 0:02:41]} 13. Nxg6 {[%emt 0:01:47]} hxg6 {[%emt 0:01:06]} 14. Rab1 {[%emt 0:00:55]} b6 {[%emt 0:03:18]} 15. c5 {[%emt 0:03:52]} bxc5 {[%emt 0:00:19]} 16. Bxc5 {[%emt 0:02:22]} Nd7 {[%emt 0:04:27]} 17. Ba3 {[%emt 0:11:07]} Rfe8 {[%emt 0:07:59]} 18. c4 {[%emt 0:06:41]} dxc4 {[%emt 0:05:20]} 19. Bxc4 {[%emt 0:00:14]} Nxc4 {[%emt 0:00:07]} 20. Qxc4 {[%emt 0:00:23]} Nb6 {[%emt 0:00:31]} 21. Qc2 {[%emt 0:00:59]} Rac8 {[%emt 0:09:24]} 22. Rdc1 {[%emt 0:02:08]} Nd5 {[%emt 0:02:00]} 23. Qd2 {[%emt 0:06:57]} e5 {[%emt 0:03:27]} 24. Rc5 {[%emt 0:10:00]} exd4 {[%emt 0:02:46]} 25. Qxd4 {[%emt 0:00:36]} Rcd8 {[%emt 0:02:57]} 26. Qc4 {[%emt 0:01:52]} Qe7 {[%emt 0:01:57]} 27. Qc1 {[%emt 0:06:14]} Qe4 {[%emt 0:04:41]} 28. Rxc6 {[%emt 0:00:56]} Rb8 {[%emt 0:01:52]} 29. Rxb8 {[%emt 0:00:50]} Rxb8 {[%emt 0:00:11]} 30. Rc8+ {[%emt 0:00:27]} Rxc8 {[%emt 0:00:08]} 31. Qxc8+ {[%emt 0:00:11]} Kh7 {[%emt 0:00:09]} 32. Qc1 {[%emt 0:00:50]} Qd3 {[%emt 0:00:22]} 33. Bb2 {[%emt 0:02:19]} Nb4 {[%emt 0:01:33]} 1/2-1/2

[Event "FIDE WCCC Girls-10 2024"]
[Site "Montesilvano"]
[Date "2024.11.20"]
[Round "6.38"]
[White "Li, Grace"]
[Black "Ritinioti, Sofia"]
[Result "1-0"]
[Annotator "NA RC"]
[ECO "B07"]
[WhiteElo "1529"]
[BlackElo "1534"]
[PlyCount "87"]
[EventDate "2024.11.18"]
[EventType "swiss"]
[EventCountry "ITA"]
[SourceTitle "playchess.com"]
[Source "ChessBase"]
[SourceQuality "1"]
[TimeControl "5400+30"]

1. e4 {[%emt 0:00:02]} d6 {[%emt 0:00:09]} 2. d4 {[%emt 0:00:11]} Nf6 {[%emt 0:00:14]} 3. Nc3 {[%emt 0:00:09]} g6 {[%emt 0:00:14]} 4. Bg5 {[%emt 0:00:27]} Bg7 {[%emt 0:00:25]} 5. Qd2 {[%emt 0:00:12]} h6 {[%emt 0:00:56]} 6. Bf4 {[%emt 0:00:10]} g5 {[%emt 0:00:55]} 7. Be3 {[%emt 0:00:21]} Ng4 {[%emt 0:01:16]} 8. h4 {[%emt 0:00:47]} Nxe3 {[%emt 0:01:35]} 9. Qxe3 {[%emt 0:00:23]} gxh4 {[%emt 0:02:03]} 10. Rxh4 {[%emt 1:32:48]} Bxd4 {[%emt 0:11:08]} 11. Qd2 {[%emt 0:00:00]} Bg7 {[%emt 0:02:46]} 12. Nf3 {[%emt 0:00:00]} c6 {[%emt 0:01:52]} 13. O-O-O {[%emt 0:00:00]} b5 {[%emt 0:01:05]} 14. e5 {[%emt 0:00:00]} d5 {[%emt 0:02:35]} 15. Ne4 {[%emt 0:00:00]} a5 {[%emt 0:04:51]} 16. g4 {[%emt 0:00:00]} Qc7 {[%emt 0:03:48]} 17. Ng3 {[%emt 0:00:00]} Bxe5 {[%emt 0:06:42]} 18. Nxe5 {[%emt 0:00:00]} Qxe5 {[%emt 0:00:45]} 19. g5 {[%emt 0:00:00]} hxg5 {[%emt 0:06:03]} 20. Rxh8+ {[%emt 0:00:00]} Qxh8 {[%emt 0:00:30]} 21. Qxg5 {[%emt 0:00:00]} Qf8 {[%emt 0:07:08]} 22. Re1 {[%emt 0:00:00]} f6 {[%emt 0:04:14]} 23. Qh5+ {[%emt 0:00:00]} Kd8 {[%emt 0:01:26]} 24. Bh3 {[%emt 0:00:00]} Nd7 {[%emt 0:02:08]} 25. Nf5 {[%emt 0:00:00]} e5 {[%emt 0:02:46]} 26. Rg1 {[%emt 0:00:00]} Nc5 {[%emt 0:04:45]} 27. Qh7 {[%emt 0:00:00]} Bxf5 {[%emt 0:05:44]} 28. Bxf5 {[%emt 0:00:00]} Ra6 {[%emt 0:09:56]} 29. Rg8 {[%emt 0:00:00]} Qxg8 {[%emt 0:01:04]} 30. Qxg8+ {[%emt 0:00:00]} Kc7 {[%emt 0:03:10]} 31. Qf7+ {[%emt 0:00:00]} Kb6 {[%emt 0:01:33]} 32. Qxf6 {[%emt 0:00:00]} b4 {[%emt 0:02:33]} 33. Qxe5 {[%emt 0:00:00]} Ra8 {[%emt 0:01:01]} 34. Qf6 {[%emt 0:00:00]} Re8 {[%emt 0:02:04]} 35. b3 {[%emt 0:00:00]} Re1+ {[%emt 0:01:18]} 36. Kb2 {[%emt 0:00:00]} a4 {[%emt 0:02:45]} 37. a3 {[%emt 0:00:00]} bxa3+ {[%emt 0:01:45]} 38. Kxa3 {[%emt 0:00:00]} axb3 {[%emt 0:01:17]} 39. cxb3 {[%emt 0:00:00]} Re8 {[%emt 0:01:21]} 40. Qd4 {[%emt 0:00:00]} Kb5 {[%emt 0:00:59]} 41. b4 {[%emt 0:00:00]} Ra8+ {[%emt 0:00:32]} 42. Kb2 {[%emt 0:00:00]} Na4+ {[%emt 0:00:31]} 43. Kc2 {[%emt 0:00:00]} Rf8 {[%emt 0:00:32]} 44. Bd3# {[%emt 0:00:00]} 1-0

[Event "FIDE WCCC Girls-10 2024"]
[Site "Montesilvano"]
[Date "2024.11.20"]
[Round "6.41"]
[White "Billod-Laillet, Camille"]
[Black "Damaso Tacoronte, Carolina"]
[Result "1-0"]
[Annotator "NA RC"]
[ECO "C01"]
[WhiteElo "1732"]
[BlackElo "1875"]
[PlyCount "195"]
[EventDate "2024.11.18"]
[EventType "swiss"]
[EventCountry "ITA"]
[SourceTitle "playchess.com"]
[Source "ChessBase"]
[SourceQuality "1"]
[TimeControl "5400+30"]

1. e4 {[%emt 0:00:03]} e6 {[%emt 0:00:04]} 2. d4 {[%emt 0:00:08]} d5 {[%emt 0:00:05]} 3. exd5 {[%emt 0:00:07]} exd5 {[%emt 0:00:07]} 4. Bd3 {[%emt 0:00:10]} Bd6 {[%emt 0:00:34]} 5. h3 {[%emt 0:01:11]} Ne7 {[%emt 0:02:31]} 6. Nf3 {[%emt 0:01:37] C01: French: Exchange Variation.} Bf5 {[%emt 0:02:23]} 7. Bxf5 {[%emt 0:02:41]} Nxf5 {[%emt 0:01:32]} 8. O-O {[%emt 0:04:08]} O-O {[%emt 0:01:11]} 9. Qd3 {[%emt 0:08:42]} Nh4 {[%emt 0:07:52]} 10. Ng5 {[%emt 0:18:20]} Ng6 {[%emt 0:02:07]} 11. Qf5 {[%emt 0:11:09]} Qd7 {[%emt 0:11:28]} 12. Qxd7 {[%emt 0:04:31]} Nxd7 {[%emt 0:00:18]} 13. Nc3 {[%emt 0:01:54]} c6 {[%emt 0:03:24]} 14. Bd2 {[%emt 0:04:30]} Nb6 {[%emt 0:10:47]} 15. b3 {[%emt 0:06:51]} Nh4 {[%emt 0:08:22]} 16. g3 {[%emt 0:05:55]} Nf5 {[%emt 0:05:19]} 17. Nf3 {[%emt 0:01:47]} c5 {[%emt 0:11:51]} 18. Nb5 {[%emt 0:06:55]} cxd4 {[%emt 0:06:36]} 19. g4 {[%emt 0:04:52]} a6 {[%emt 0:01:07]} 20. Nxd6 {[%emt 0:01:48]} Nxd6 {[%emt 0:00:47]} 21. Nxd4 {[%emt 0:01:39]} a5 {[%emt 0:09:42]} 22. Rfe1 {[%emt 0:04:09]} Ne4 {[%emt 0:04:25]} 23. Bf4 {[%emt 0:00:46]} Rfc8 {[%emt 0:02:23]} 24. f3 {[%emt 0:00:40]} Nc5 {[%emt 0:00:49]} 25. Nf5 {[%emt 0:02:24]} Na6 {[%emt 0:00:44]} 26. Ne7+ {[%emt 0:00:15]} Kf8 {[%emt 0:00:40]} 27. Nxc8 {[%emt 0:00:10]} Rxc8 {[%emt 0:00:09]} 28. Bd6+ {[%emt 0:00:15]} Kg8 {[%emt 0:00:12]} 29. Re2 {[%emt 0:00:22]} h6 {[%emt 0:00:17]} 30. a3 {[%emt 0:00:58]} Kh7 {[%emt 0:00:28]} 31. Rc1 {[%emt 0:00:38]} Rd8 {[%emt 0:00:27]} 32. Bf4 {[%emt 0:00:42]} g5 {[%emt 0:00:31]} 33. Bg3 {[%emt 0:00:20]} Kg7 {[%emt 0:00:23]} 34. Be1 {[%emt 0:00:39]} Nc5 {[%emt 0:00:49]} 35. Bxa5 {[%emt 0:00:48]} Ncd7 {[%emt 0:00:06]} 36. Rce1 {[%emt 0:00:27]} Ra8 {[%emt 0:00:17]} 37. Bc3+ {[%emt 0:00:33]} Kg6 {[%emt 0:00:17]} 38. a4 {[%emt 0:00:30]} Rc8 {[%emt 0:00:17]} 39. Ba5 {[%emt 0:00:17]} Na8 {[%emt 0:00:24]} 40. Rd1 {[%emt 0:00:28]} Nf6 {[%emt 0:00:15]} 41. Bb4 {[%emt 0:00:24]} Nb6 {[%emt 0:00:21]} 42. Be7 {[%emt 0:00:18]} Nbd7 {[%emt 0:00:09]} 43. Bxf6 {[%emt 0:00:45]} Nxf6 {[%emt 0:00:04]} 44. Rdd2 {[%emt 0:00:26]} b6 {[%emt 0:00:13]} 45. Rd4 {[%emt 0:00:37]} Rb8 {[%emt 0:00:20]} 46. Rb4 {[%emt 0:00:21]} Rb7 {[%emt 0:00:06]} 47. a5 {[%emt 0:00:34]} b5 {[%emt 0:00:14]} 48. Rd2 {[%emt 0:01:34]} Kg7 {[%emt 0:00:26]} 49. Kf2 {[%emt 0:00:43]} Kg6 {[%emt 0:00:15]} 50. Kg3 {[%emt 0:00:26]} Kg7 {[%emt 0:00:13]} 51. Rd1 {[%emt 0:00:35]} Kg6 {[%emt 0:00:12]} 52. Ra1 {[%emt 0:00:23]} Rc7 {[%emt 0:01:37]} 53. Ra2 {[%emt 0:00:28]} Rc3 {[%emt 0:01:24]} 54. a6 {[%emt 0:02:49]} Ne4+ {[%emt 0:00:04]} 55. Rxe4 {[%emt 0:01:03]} dxe4 {[%emt 0:00:12]} 56. a7 {[%emt 0:00:31]} Rc8 {[%emt 0:04:09]} 57. a8=Q {[%emt 0:00:31]} Rxa8 {[%emt 0:00:10]} 58. Rxa8 {[%emt 0:00:08]} e3 {[%emt 0:00:05]} 59. Re8 {[%emt 0:00:07]} f5 {[%emt 0:00:47]} 60. gxf5+ {[%emt 0:00:05]} Kxf5 {[%emt 0:00:08]} 61. Rxe3 {[%emt 0:00:22]} Kg6 {[%emt 0:00:19]} 62. f4 {[%emt 0:00:15]} gxf4+ {[%emt 0:00:15]} 63. Kxf4 {[%emt 0:00:06]} Kf6 {[%emt 0:00:14]} 64. Re5 {[%emt 0:00:14]} b4 {[%emt 0:00:20]} 65. Rb5 {[%emt 0:00:07]} Ke6 {[%emt 0:00:20]} 66. Rxb4 {[%emt 0:00:16]} Kd5 {[%emt 0:00:14]} 67. Rb6 {[%emt 0:00:08]} h5 {[%emt 0:00:09]} 68. Rh6 {[%emt 0:00:09]} h4 {[%emt 0:00:24]} 69. Rxh4 {[%emt 0:00:12]} Kc5 {[%emt 0:00:06]} 70. b4+ {[%emt 0:00:13]} Kb5 {[%emt 0:00:16]} 71. c4+ {[%emt 0:00:12]} Kxc4 {[%emt 0:00:08]} 72. Kg5+ {[%emt 0:00:04]} Kb5 {[%emt 0:00:04]} 73. Rh8 {[%emt 0:00:17]} Kxb4 {[%emt 0:00:12]} 74. Rb8+ {[%emt 0:00:13]} Kc5 {[%emt 0:00:08]} 75. h4 {[%emt 0:00:10]} Kd6 {[%emt 0:00:13]} 76. h5 {[%emt 0:00:13]} Kc7 {[%emt 0:00:08]} 77. h6 {[%emt 0:00:14]} Kxb8 {[%emt 0:00:04]} 78. h7 {[%emt 0:00:14]} Kc7 {[%emt 0:00:03]} 79. h8=Q {[%emt 0:00:09]} Kd6 {[%emt 0:00:08]} 80. Qh4 {[%emt 0:00:19]} Kd5 {[%emt 0:00:21]} 81. Qg4 {[%emt 0:00:09]} Kd6 {[%emt 0:00:24]} 82. Kh4 {[%emt 0:00:10]} Ke7 {[%emt 0:00:08]} 83. Kg3 {[%emt 0:00:20]} Ke8 {[%emt 0:00:07]} 84. Qg5 {[%emt 0:00:21]} Kd7 {[%emt 0:00:07]} 85. Kf4 {[%emt 0:00:18]} Kc6 {[%emt 0:00:19]} 86. Ke4 {[%emt 0:00:09]} Kb6 {[%emt 0:00:34]} 87. Kd4 {[%emt 0:00:11]} Kc6 {[%emt 0:00:21]} 88. Qh5 {[%emt 0:00:06]} Kb6 {[%emt 0:00:31]} 89. Kc4 {[%emt 0:00:06]} Ka6 {[%emt 0:00:09]} 90. Kb4 {[%emt 0:00:22]} Kb6 {[%emt 0:00:17]} 91. Qh6+ {[%emt 0:00:05]} Kc7 {[%emt 0:00:25]} 92. Kc5 {[%emt 0:00:20]} Kd7 {[%emt 0:00:19]} 93. Qg6 {[%emt 0:00:14]} Ke7 {[%emt 0:00:16]} 94. Kd5 {[%emt 0:00:19]} Kd7 {[%emt 0:00:29]} 95. Qh7+ {[%emt 0:00:13]} Kc8 {[%emt 0:00:28]} 96. Kd6 {[%emt 0:00:11]} Kb8 {[%emt 0:00:15]} 97. Kc6 {[%emt 0:00:15]} Ka8 {[%emt 0:00:11]} 98. Qb7# {[%emt 0:00:14]} 1-0

[Event "FIDE WCCC Girls-10 2024"]
[Site "Montesilvano"]
[Date "2024.11.20"]
[Round "6.42"]
[White "Ivanova, Darina"]
[Black "Giss, Annika"]
[Result "1/2-1/2"]
[Annotator "NA RC"]
[ECO "B35"]
[WhiteElo "1516"]
[BlackElo "1586"]
[PlyCount "61"]
[EventDate "2024.11.18"]
[EventType "swiss"]
[EventCountry "ITA"]
[SourceTitle "playchess.com"]
[Source "ChessBase"]
[SourceQuality "1"]
[TimeControl "5400+30"]

1. e4 {[%emt 0:00:03]} c5 {[%emt 0:00:10]} 2. Nf3 {[%emt 0:00:17]} Nc6 {[%emt 0:00:11]} 3. d4 {[%emt 0:00:09]} cxd4 {[%emt 0:00:10]} 4. Nxd4 {[%emt 0:00:10]} g6 {[%emt 0:00:16]} 5. Nc3 {[%emt 0:00:09]} Bg7 {[%emt 0:00:14]} 6. Be3 {[%emt 0:00:06]} Nf6 {[%emt 0:00:57]} 7. Bc4 {[%emt 0:00:18]} O-O {[%emt 0:00:27]} 8. f3 {[%emt 0:00:29]} Qb6 {[%emt 0:01:43]} 9. Bb3 {[%emt 0:04:06]} Nxe4 {[%emt 0:02:08]} 10. Nce2 {[%emt 0:04:10]} Qa5+ {[%emt 0:16:16]} 11. c3 {[%emt 0:02:33]} Nd6 {[%emt 0:12:23]} 12. Qd2 {[%emt 0:03:31]} Ne5 {[%emt 0:09:51]} 13. Bh6 {[%emt 0:07:17]} Nec4 {[%emt 0:03:13]} 14. Qg5 {[%emt 0:02:31]} Qxg5 {[%emt 0:01:32]} 15. Bxg5 {[%emt 0:00:13]} Re8 {[%emt 0:04:02]} 16. Nb5 {[%emt 0:02:47]} Nxb5 {[%emt 0:02:28]} 17. Bxc4 {[%emt 1:10:11]} Nd6 {[%emt 0:02:34]} 18. Bb3 {[%emt 0:00:00]} b6 {[%emt 0:13:40]} 19. O-O-O {[%emt 0:00:00]} Ba6 {[%emt 0:01:32]} 20. Nf4 {[%emt 0:00:00]} Rac8 {[%emt 0:01:33]} 21. Bxe7 {[%emt 0:00:00]} Rxe7 {[%emt 0:02:48]} 22. Rxd6 {[%emt 0:00:00]} Be5 {[%emt 0:01:20]} 23. Nxg6 {[%emt 0:00:00]} Bxd6 {[%emt 0:00:37]} 24. Nxe7+ {[%emt 0:00:00]} Bxe7 {[%emt 0:00:09]} 25. Rd1 {[%emt 0:00:00]} Rc7 {[%emt 0:02:40]} 26. Rd5 {[%emt 0:00:00]} Bb7 {[%emt 0:01:24]} 27. Rf5 {[%emt 0:00:00]} d5 {[%emt 0:02:31]} 28. Bxd5 {[%emt 0:00:00]} Bxd5 {[%emt 0:00:07]} 29. Rxd5 {[%emt 0:00:00]} a6 {[%emt 0:00:38]} 30. Re5 {[%emt 0:00:00]} b5 {[%emt 0:00:47]} 31. Kd2 {[%emt 0:07:00]} 1/2-1/2

[Event "FIDE WCCC Girls-10 2024"]
[Site "Montesilvano"]
[Date "2024.11.22"]
[Round "7.1"]
[White "Berikkyzy Alanna"]
[Black "Yunker, Alisa Genrietta"]
[Result "1-0"]
[Annotator "NA RC"]
[ECO "C10"]
[WhiteElo "2043"]
[BlackElo "1872"]
[PlyCount "143"]
[EventDate "2024.11.18"]
[EventType "swiss"]
[EventCountry "ITA"]
[SourceTitle "playchess.com"]
[Source "ChessBase"]
[SourceQuality "1"]
[TimeControl "5400+30"]

1. e4 {[%emt 0:00:14]} e6 {[%emt 0:00:01]} 2. d4 {[%emt 0:00:26]} d5 {[%emt 0:00:04]} 3. Nc3 {[%emt 0:01:03]} dxe4 {[%emt 0:00:18]} 4. Nxe4 {[%emt 0:00:18]} Nd7 {[%emt 0:00:05]} 5. Bd3 {[%emt 0:00:38]} Ngf6 {[%emt 0:00:47]} 6. Qe2 {[%emt 0:01:52]} Nxe4 {[%emt 0:05:35]} 7. Bxe4 {[%emt 0:00:21]} Nf6 {[%emt 0:04:37]} 8. Bxb7 {[%emt 0:01:34]} Bxb7 {[%emt 0:00:30]} 9. Qb5+ {[%emt 0:00:16]} Qd7 {[%emt 0:00:04]} 10. Qxb7 {[%emt 0:00:31]} Rd8 {[%emt 0:00:13]} 11. Nf3 {[%emt 0:01:42]} c5 {[%emt 0:01:36]} 12. Qxd7+ {[%emt 0:00:31]} Rxd7 {[%emt 0:00:06]} 13. dxc5 {[%emt 0:00:16]} Bxc5 {[%emt 0:00:02]} 14. O-O {[%emt 0:00:18]} Ng4 {[%emt 0:07:50] [#]} 15. Bf4 $1 {[%emt 0:01:45]} Nxf2 {[%emt 0:03:31]} 16. Rxf2 {[%emt 0:00:19]} f6 $18 {[%emt 0:00:43]} 17. Re1 {[%emt 0:01:05]} Bxf2+ {[%emt 0:03:56]} 18. Kxf2 {[%emt 0:00:08]} Kf7 {[%emt 0:00:02]} 19. c4 {[%emt 0:01:18]} Rc8 {[%emt 0:01:59]} 20. Rc1 {[%emt 0:01:04]} Re7 {[%emt 0:00:52]} 21. b4 {[%emt 0:02:00]} e5 {[%emt 0:00:30]} 22. Be3 {[%emt 0:00:18]} f5 {[%emt 0:12:23]} 23. g3 {[%emt 0:01:07]} h6 {[%emt 0:02:37]} 24. h4 {[%emt 0:00:23]} Kf6 {[%emt 0:04:50]} 25. b5 {[%emt 0:02:03]} Rd7 {[%emt 0:01:33]} 26. a4 {[%emt 0:01:58]} e4 {[%emt 0:00:15]} 27. Nd4 {[%emt 0:00:53]} g5 {[%emt 0:00:27]} 28. Nc6 {[%emt 0:04:30]} a6 {[%emt 0:01:33]} 29. Na7 {[%emt 0:02:40]} Rg8 {[%emt 0:03:08]} 30. hxg5+ {[%emt 0:02:12]} hxg5 {[%emt 0:00:02]} 31. b6 {[%emt 0:00:32]} Ke5 {[%emt 0:00:58]} 32. Nc6+ {[%emt 0:03:14]} Kd6 {[%emt 0:00:06]} 33. Na5 {[%emt 0:00:11]} Ke5 {[%emt 0:04:16]} 34. b7 {[%emt 0:00:52]} f4 {[%emt 0:00:59]} 35. gxf4+ {[%emt 0:00:45]} gxf4 {[%emt 0:00:02]} 36. b8=Q+ {[%emt 0:00:26]} Rxb8 {[%emt 0:00:07]} 37. Nc6+ {[%emt 0:00:03]} Kf5 {[%emt 0:00:12]} 38. Nxb8 {[%emt 0:00:03]} Rb7 {[%emt 0:00:24]} 39. Nc6 {[%emt 0:09:46]} Rb2+ {[%emt 0:00:08]} 40. Ke1 {[%emt 0:00:05]} fxe3 {[%emt 0:01:22]} 41. Rc2 {[%emt 0:08:03]} Rb1+ {[%emt 0:10:37]} 42. Ke2 {[%emt 0:00:05]} Kf4 {[%emt 0:00:55]} 43. Ne7 {[%emt 0:00:55]} Rh1 {[%emt 0:00:42]} 44. Nd5+ {[%emt 0:00:07]} Ke5 {[%emt 0:00:03]} 45. Nxe3 {[%emt 0:01:56]} Kd4 {[%emt 0:01:37]} 46. Nf5+ {[%emt 0:03:47]} Ke5 {[%emt 0:01:39]} 47. Ng3 {[%emt 0:01:21]} Rh3 {[%emt 0:04:33]} 48. Nf1 {[%emt 0:00:19]} Kd6 {[%emt 0:02:49]} 49. c5+ {[%emt 0:00:59]} Kc6 {[%emt 0:00:02]} 50. Nd2 {[%emt 0:00:16]} Rh2+ {[%emt 0:05:08]} 51. Ke3 {[%emt 0:01:13]} Rh3+ {[%emt 0:00:09]} 52. Kxe4 {[%emt 0:00:24]} Rh4+ {[%emt 0:00:05]} 53. Ke5 {[%emt 0:00:09]} Rh5+ {[%emt 0:00:08]} 54. Kd4 {[%emt 0:00:06]} Rd5+ {[%emt 0:00:10]} 55. Kc4 {[%emt 0:01:01]} Rh5 {[%emt 0:01:31]} 56. Nb3 {[%emt 0:00:11]} Rh1 {[%emt 0:00:32]} 57. Nd4+ {[%emt 0:00:14]} Kc7 {[%emt 0:00:02]} 58. Re2 {[%emt 0:00:35]} Rh7 {[%emt 0:00:10]} 59. Re6 {[%emt 0:01:12]} a5 {[%emt 0:00:56]} 60. Ra6 {[%emt 0:00:46]} Kb7 {[%emt 0:00:18]} 61. Rxa5 {[%emt 0:00:07]} Rh1 {[%emt 0:00:14]} 62. Rb5+ {[%emt 0:00:14]} Ka6 {[%emt 0:00:05]} 63. c6 {[%emt 0:00:21]} Ka7 {[%emt 0:00:15]} 64. Kd5 {[%emt 0:00:29]} Rh5+ {[%emt 0:00:14]} 65. Kd6 {[%emt 0:00:03]} Rh4 {[%emt 0:00:05]} 66. Ne6 {[%emt 0:00:17]} Rh8 {[%emt 0:00:23]} 67. c7 {[%emt 0:00:14]} Rc8 {[%emt 0:00:41]} 68. Kd7 {[%emt 0:00:09]} Rg8 {[%emt 0:00:26]} 69. c8=N+ {[%emt 0:01:03]} Rxc8 {[%emt 0:00:23]} 70. Kxc8 {[%emt 0:00:06]} Ka6 {[%emt 0:00:04]} 71. Nc7+ {[%emt 0:00:03]} Ka7 {[%emt 0:00:06]} 72. Rb7# {[%emt 0:00:04]} 1-0